Workbook

Sheet About...

Sheet Chemical Properties Worksheet
C13: Henry's Law Constant and KAW: Calculate from Solubility and Vapor Pressure | J13: Enter Property Value at 25°C: | K13: 200
J14: Enter Desired Temperature (°C): | K14: 45
C15: Enter Molar Mass (g/mol): | D15: 165.83 | J15: Enter Enthalpy of Phase Change (J/mol): | K15: -40000
C16: Enter Temperature (°C): | D16: 25
C17: Enter Solubility (mg/L or g/m³): | D17: 206 | J17: ="Property at " & K14 & " °C =" -> Property at 45 °C = | K17: =K13*EXP(K15/8.314*(1/(298.15)-1/(K14+273.15))) -> 72.52331225
C18: Enter Vapor Pressure (Pa): | D18: 2470
C20: Henry's Law Constant = | D20: =D18/D17*D15 -> 1988.35 | E20: Pa·m³/mol
J21: Estimate Reaction Half-Life at a Different Temperature Using Activation Energies
C22: Air-Water Partition Coefficient (KAW) = | D22: =D20/(8.314*(D16+273.15)) -> 0.8021359848
J23: Note: Activation energies are always positive, and are input in J/mol (not kJ/mol).
C26: Organic Carbon-Water Partition Coefficient (KOC): Calculate from logKOW | J26: Enter Reaction Half Life at 25°C (h): | K26: 720
J27: Enter Desired Temperature (°C): | K27: 10
C28: Enter logKOW: | D28: 7.2 | J28: Enter Activation Energy (J/mol): | K28: 1000
C30: (Karickhoff method) KOC = | D30: =0.41*10^D28 -> 6498062.089 | E30: L/kg | J30: ="Reaction Half-Life at " & K27 & " °C =" -> Reaction Half-Life at 10 °C = | K30: =K26*EXP(K28/8.314*(1/(K27+273.15)-1/298.15)) -> 735.5528981
C32: (Seth et al. method) KOC = | D32: =0.35*10^D28 -> 5547126.174 | E32: L/kg
J34: Aerosol-Air Partition Coefficient (KQA): Calculate from Melting Point and Vapor Pressure
C36: Converting from Solid-Air Partition Coefficients to Solid-Water Partition Coefficients | J36: Enter Temperature: | K36: 25 | L36: °C
J37: Enter Melting Point: | K37: 110 | L37: °C
C38: Enter Solid-Air Partition Coefficient: | D38: 5000 | E38: (dimensionless) | J38: Enter Vapor Pressure: | K38: 209000 | L38: Pa
C39: Enter KAW (see above, or 1/KWA): | D39: 0.0167 | E39: (dimensionless)
C40: Enter Density of Solid: | D40: 2.4 | E40: kg/L | J40: Subcooled Liquid Vapor Pressure = | K40: =IF(K37>K36,K38*EXP(6.79*((K37+273.15)/(K36+273.15)-1)),K38) -> 1448240.771 | L40: Pa
C42: Solid-Water Partition Coefficient = | D42: =D38*D39*1/D40 -> 34.79166667 | E42: L/kg | J42: KQA = | K42: =6000000/K40 -> 4.142957526

Sheet Chemical Database
M7: Half-Lives | Q7: Partition Coefficients
A8: CAS | B8: Chemical Name | C8: Molar Mass | D8: Data Temp. | E8: Melting Point | G8: Vapor pressure | I8: Solubility in Water | K8: Henry's Law Constant | M8: In Water | O8: In Sediment | Q8: logKOW | S8: Air-Water (KAW) | U8: Aerosol-Air | W8: Aerosol-Water | Y8: KOC | AA8: Suspended Particles-Water | AC8: Susp. Part.-Water (Inflow) | AE8: Sediment-Water | AG8: Resuspended Sediment-Water | AI8: NOTES
C9: (g/mol) | D9: °C | E9: °C | F9: Ref. | G9: (Pa) | H9: Ref. | I9: (g/m³ or mg/L) | J9: Ref. | K9: (Pa·m³/mol) | L9: Ref. | M9: (hours) | N9: Ref. | O9: (hours) | P9: Ref. | R9: Ref. | S9: unitless (m³/m³) | T9: Ref. | U9: unitless | V9: Ref. | W9: unitless | X9: Ref. | Y9: L/kg | Z9: Ref. | AA9: L/kg | AB9: Ref. | AC9: L/kg | AD9: Ref. | AE9: L/kg | AF9: Ref. | AG9: L/kg | AH9: Ref.
B10: Hypothene | C10: 250 | D10: 25 | E10: 275 | G10: 0.02 | I10: 30 | K10: 0.167 | M10: 55 | O10: 170 | Q10: 2.5 | S10: 6.72e-05 | T10: calculated | U10: 1010000 | Y10: 130 | AA10: 100 | AE10: 25.9 | AG10: 5.19 | AI10: Hypothetical chemical
B11: Chlorobenzene | C11: 112.56 | D11: 25 | E11: -45.3 | G11: 1580 | I11: 495 | K11: 359 | L11: H = P*M/S | M11: 602.2 | N11: EAS-E Suite Database | O11: 5419.8 | P11: EAS-E Suite Database | Q11: 2.9 | S11: 0.145 | T11: Kaw = H/RT | U11: 3800 | Y11: 300 | AA11: 60 | AE11: 12 | AG11: 60
B12: Benzene (example) | C12: 78.11 | D12: 25 | E12: 5.53 | G12: 12700 | I12: 1780 | K12: 557.3 | L12: H = P*M/S | M12: 331.1 | N12: EAS-E Suite Database | O12: 2979.92 | P12: EAS-E Suite Database | Q12: 2.13 | S12: 0.225 | T12: Kaw = H/RT | U12: 472.4 | V12: Kqa=6E+06/Pliq | Y12: 55.31 | Z12: Koc=0.41Kow | AA12: 22.12 | AB12: Ksus=foc*Koc; foc = 0.4 | AC12: 22.12 | AD12: Ksus=foc*Koc; foc = 0.4 | AE12: 1.66 | AF12: Ksus=foc*Koc; foc = 0.03 | AG12: 1.38 | AH12: Ksus=foc*Koc; foc = 0.025 | AI12: from the QWASI model DB (version 3.10); using "Lake Superior" fOCs
B13: 1,2,4-Trichlorobenzene | C13: 181.45 | D13: 25 | E13: 16.95 | G13: 61 | I13: 40 | K13: 276.7 | L13: H = P*M/S | M13: 2272.2 | N13: EAS-E Suite Database | O13: 22722 | P13: EAS-E Suite Database | Q13: 4.1 | S13: 0.116 | T13: Kaw = H/RT | U13: 98360 | V13: Kqa=6E+06/Pliq | Y13: 5162 | Z13: Koc=0.41Kow | AI13: from the QWASI model DB (version 3.10)
B14: Tetrachloroethylene | C14: 165.83 | D14: 25 | F14: assumed to be less than 25°C | G14: 2470 | I14: 206 | K14: 1998 | M14: 1550.1 | N14: EAS-E Suite Database | O14: 13951 | P14: EAS-E Suite Database | Q14: 3.4 | S14: 0.802 | U14: 2429 | Y14: 1030 | Z14: Karickhoff | AI14: all properties from Arnot et al. Env Mod Soft 2010
B15: LAS (linear alkylbenzene sulfonates) | C15: 348 | D15: 25 | K15: 0 | L15: KAW=0 | M15: 24 | O15: 96 | S15: 0 | T15: no appreciable Pv | W15: 100 | AA15: 570 | AC15: 570 | AE15: 570 | AG15: 570 | AI15: EQC v2.02 database (software version, released 2003)
B16: D5 | C16: 370.77 | D16: 25 | E16: -38 | F16: PhysProp Database 2011 | G16: 33.2 | H16: IUCLID (2005) | I16: 0.017 | J16: Varaprath et al. (1996) | K16: 3340000 | L16: H = KAW * RT | M16: 1689.6 | N16: Kozerski (2008) | O16: 74400 | P16: Xu (2010) | Q16: 8.03 | R16: Kozerski (2007), slow-stir direct analysis | S16: 1348.96 | T16: Xu and Kropscott (2007), double syringe method | U16: 181000 | V16: 6E+06/(liquid vapour pressure) | Y16: 147900 | Z16: Durham and Kozerski (2007), batch equilibrium method
A17: 35065-29-3 | B17: PCB 180 | C17: 395.323 | D17: 25 | E17: 110 | F17: Hutzinger et al. 1974 "The Chemistry of PCBs" CRC Press | G17: 209000 | H17: solid - Paasivirta et al. 1999. Chemosphere 39 811-832 | K17: 37 | L17: Bamford et al. 2000. J. Chem. Eng. Data 45, 1069–1074. | M17: 100000 | N17: Sinkkonen & Paasivirta 2000 Chemosphere 40 943-949. (est., order of mag.) | O17: 100000 | P17: Sinkkonen & Paasivirta 2000 Chemosphere 40 943-949. (est., order of mag.) | Q17: 7.2 | R17: Paasivirta et al. 1999. Chemosphere 39 811-832 | S17: 0.0149 | T17: KAW = H/RT | U17: 4.143 | V17: calculated from P(liq) and melting point | Y17: 5500000 | Z17: Seth et al. 1999. ES&T 33 2390-2394 (Koc = 0.35 * Kow) | AI17: 2,2',3,4,4',5,5'-Heptachlorobiphenyl, values are found in Handbook (Mackay et al. 2006)

Sheet Environment Database
B7: Dimensions | E7: Concentration of Solids | I7: Density (kg/m³) | L7: OC Content (g/g) | P7: Rates | X7: Volatilization Mass Transfer | Z7: Diffusion
A8: Name | B8: Water | D8: Sediment | E8: Aerosols in Air | F8: in Water Column | G8: in Inflow Water | H8: in Sediment | I8: Aerosols | J8: Particles in Water | K8: Sediment Solids | L8: Particles in Water | M8: Particles in Water | N8: Sediment Solids | O8: Resuspended Sediment | P8: Water Inflow | Q8: Water Outflow | R8: Sedimentation | S8: Sediment Burial | T8: Sediment Resuspension | U8: Aerosol Deposition | V8: Scavenging Ratio | W8: Rain Rate | X8: Air Side Coefficient | Y8: Water Side Coefficient | Z8: Sed-Water MTC | AA8: NOTES
B9: Surface Area (m²) | C9: Volume (m³) | D9: Active Layer Depth (m) | E9: µg/m³ | F9: mg/L | G9: mg/L | H9: m³/m³ | M9: (inflow) | P9: m³/h | Q9: m³/h | R9: g/(m²·day) | S9: g/(m²·day) | T9: g/(m²·day) | U9: m/h | V9: vol air/vol rain | W9: m/year | X9: m/h | Y9: m/h | Z9: m/h
A10: Lake Superior | B10: 82100000000 | C10: 12100000000000 | D10: 0.005 | E10: 10 | F10: 0.3 | G10: 10 | H10: 0.15 | I10: 1500 | J10: 2600 | K10: 2600 | L10: 0.4 | M10: 0.4 | N10: 0.03 | O10: 0.025 | P10: 6000000 | Q10: 8000000 | R10: 0.14 | S10: 0.09 | T10: 0.03 | U10: 7.2 | V10: 200000 | W10: 0.79 | X10: 1 | Y10: 0.01 | Z10: 0.0004
A11: Lake Michigan | B11: 57800000000 | C11: 4920000000000 | D11: 0.005 | E11: 20 | F11: 1.3 | G11: 15 | H11: 0.15 | I11: 1500 | J11: 2400 | K11: 2400 | L11: 0.15 | M11: 0.15 | N11: 0.04 | O11: 0.035 | P11: 3000000 | Q11: 6500000 | R11: 1.2 | S11: 0.4 | T11: 0.6 | U11: 7.2 | V11: 200000 | W11: 0.79 | X11: 1 | Y11: 0.01 | Z11: 0.0004
A12: Lake Huron (excluding Georgian Bay) | B12: 46600000000 | C12: 3460000000000 | D12: 0.005 | E12: 15 | F12: 1.3 | G12: 5 | H12: 0.15 | I12: 1500 | J12: 2400 | K12: 2400 | L12: 0.14 | M12: 0.14 | N12: 0.03 | O12: 0.025 | P12: 6000000 | Q12: 20000000 | R12: 1.2 | S12: 0.4 | T12: 0.6 | U12: 7.2 | V12: 200000 | W12: 0.97 | X12: 1 | Y12: 0.01 | Z12: 0.0004
A13: Georgian Bay | B13: 13000000000 | C13: 600000000000 | D13: 0.005 | E13: 15 | F13: 1.3 | G13: 5 | H13: 0.15 | I13: 1500 | J13: 2400 | K13: 2400 | L13: 0.14 | M13: 0.14 | N13: 0.03 | O13: 0.025 | P13: 700000 | Q13: 5000000 | R13: 1.2 | S13: 0.4 | T13: 0.6 | U13: 7.2 | V13: 200000 | W13: 1.1 | X13: 1 | Y13: 0.01 | Z13: 0.0004
A14: Lake Erie | B14: 25700000000 | C14: 484000000000 | D14: 0.005 | E14: 30 | F14: 4 | G14: 30 | H14: 0.15 | I14: 1500 | J14: 2400 | K14: 2400 | L14: 0.1 | M14: 0.1 | N14: 0.04 | O14: 0.035 | P14: 20000000 | Q14: 22000000 | R14: 1.4 | S14: 0.6 | T14: 0.6 | U14: 7.2 | V14: 200000 | W14: 0.98 | X14: 1 | Y14: 0.01 | Z14: 0.0004
A15: Lake Ontario | B15: 19100000000 | C15: 1640000000000 | D15: 0.005 | E15: 30 | F15: 0.64 | G15: 24 | H15: 0.15 | I15: 1500 | J15: 2400 | K15: 2400 | L15: 0.25 | M15: 0.25 | N15: 0.04 | O15: 0.035 | P15: 22000000 | Q15: 26000000 | R15: 1.4 | S15: 0.6 | T15: 0.6 | U15: 7.2 | V15: 200000 | W15: 0.92 | X15: 1 | Y15: 0.01 | Z15: 0.0004
A16: Rihand Reservoir | B16: 463000000 | C16: 10200000000 | D16: 0.02 | E16: 165 | F16: 67.77 | G16: 0.5 | H16: 0.07 | I16: 1940 | J16: 1940 | K16: 1940 | L16: 0.2 | M16: 0.2 | N16: 0.02 | O16: 0.114 | P16: 578000 | Q16: 578000 | R16: 12.89 | S16: 4.72 | T16: 0.69 | U16: 10 | V16: 200000 | W16: 0.2 | X16: 1 | Y16: 0.01 | Z16: 0.0003
A17: Shield Lake | B17: 20000000 | C17: 200000000 | D17: 0.01 | E17: 30 | F17: 2 | G17: 2 | H17: 0.1 | I17: 1500 | J17: 2400 | K17: 2400 | L17: 0.3 | M17: 0.3 | N17: 0.05 | O17: 0.05 | P17: 10000 | Q17: 10000 | R17: 2 | S17: 0.5 | T17: 0.5 | U17: 10 | V17: 200000 | W17: 1 | X17: 1 | Y17: 0.01 | Z17: 0.0004
A18: Lake Ontario 1990s data | B18: 19500000000 | C18: 1670000000000 | D18: 0.005 | E18: 30 | F18: 0.5 | G18: 24 | H18: 0.15 | I18: 1500 | J18: 2400 | K18: 2400 | L18: 0.2 | M18: 0.2 | N18: 0.0359 | O18: 0.0359 | P18: 24000000 | Q18: 24400000 | R18: 1.4 | S18: 0.589 | T18: 0.581 | U18: 7.2 | V18: 200000 | W18: 0.84 | X18: 1 | Y18: 0.01 | Z18: 0.0004

Sheet Inputs - Chemical Properties
D2: hover cursor over red triangle for info
C3: CHEMICAL PROPERTIES | D3: Please complete all required fields below
D4: or
D5: Select a chemical from the database:
C6: * indicates required input
F7: References and Notes
B9: * | C9: Chemical Name | D9: Benzene (example) | F9: from the QWASI model DB (version 3.10); using "Lake Superior" fOCs
C10: CAS
B12: * | C12: Molar Mass (g/mol) | D12: 78.11
B13: * | C13: Data Temperature (°C) | D13: 25
C14: Melting Point (°C) | D14: 5.53
C15: Vapor Pressure (Pa) | D15: 12700
B16: * | C16: Henry's Law Constant (Pa·m³/mol) | D16: 557.3 | F16: H = P*M/S
C18: Reaction Half-Lives (hours)
B19: * | C19: In Water | D19: 170
B20: * | C20: In Sediment | D20: 1700
C22: Partition Coefficients
D23: unitless
C24: logKOW | D24: 2.13
B25: * | C25: Air-Water (KAW) | D25: 0.225 | F25: Kaw = H/RT
B26: * | C26: Aerosol-Air (KQA) | D26: 472.4 | F26: Kqa=6E+06/Pliq
C27: OR
B28: * | C28: Aerosol-Water (KQW)
D29: L/kg
B30: * | C30: KOC | D30: 55.31 | F30: Koc=0.41Kow
C31: Suspended Particles-Water | D31: 22.12 | F31: Ksus=foc*Koc; foc = 0.4
C32: Suspended Particles-Water (Inflow) | D32: 22.12 | F32: Ksus=foc*Koc; foc = 0.4
C33: Sediment-Water | D33: 1.66 | F33: Ksus=foc*Koc; foc = 0.03
C34: Resuspended Sediment-Water | D34: 1.38 | F34: Ksus=foc*Koc; foc = 0.025

Sheet Inputs - Environment
C3: ENVIRONMENTAL PROPERTIES
C5: Please complete all fields or select an environment from the database:
C7: Environment Name | D7: Lake Ontario 1990s data
C9: Dimensions | F9: Rates
C10: Water Surface Area (m²) | D10: 19500000000 | F10: Water Inflow (m³/h) | G10: 24000000
C11: Water Volume (m³) | D11: 1670000000000 | F11: Water Outflow (m³/h) | G11: 24400000
C12: Sediment Active Layer Depth (m) | D12: 0.005 | F12: Sedimentation (g/m²·day) | G12: 1.4
F13: Sediment Burial (g/m²·day) | G13: 0.589
C14: Concentration of Solids | F14: Sediment Resuspension (g/m²·day) | G14: 0.581
C15: Aerosols in Air (µg/m³) | D15: 30 | F15: Aerosol Deposition (m/h) | G15: 7.2
C16: in Water Column (mg/L) | D16: 0.5 | F16: Scavenging Ratio (vol air/ vol rain) | G16: 200000
C17: in Inflow Water (mg/L) | D17: 24 | F17: Rain Rate (m/year) | G17: 0.84
C18: in Sediment (vol/vol) | D18: 0.15
F19: Mass Transfer Coefficients (m/h)
C20: Density (kg/m³) | F20: Volatilization - Air Side | G20: 1
C21: Aerosols | D21: 1500 | F21: Volatilization - Water Side | G21: 0.01
C22: Particles in Water | D22: 2400 | F22: Sediment-Water Diffusion | G22: 0.0004
C23: Sediment Solids | D23: 2400
F24: Additional Comments
C25: Organic Carbon (OC) Content (mass/mass)
C26: Particles in Water | D26: 0.2
C27: Particles in Water (inflow) | D27: 0.2
C28: Sediment Solids | D28: 0.0359
C29: Resuspended Sediment | D29: 0.0359

Sheet Emissions & File Options
C3: EMISSION RATES
C5: Directly Discharged into Water | D5: 1000 | E5: kg/year | F5: =Emis_kgpy*1000/MolarMass/365/24 -> 1.461467816 | G5: mol/h
C6: Concentration in Inflow Water | D6: 5 | E6: ng/L | F6: =ConcInf_ngpL/10^6/MolarMass -> 6.401229036e-08 | G6: mol/m³
C7: Concentration in Air | D7: 8 | E7: ng/m³ | F7: =ConcAir_ngpm3/10^9/MolarMass -> 1.024196646e-10 | G7: mol/m³
C9: Additional Comments

Sheet Results
C3: QWASI RESULTS
C5: Chemical Name | D5: =ChemName -> Benzene (example)
C6: Environment Name | D6: =EnvName -> Lake Ontario 1990s data
C9: Fugacity Ratio | D9: =IF(Pv=0,"N/A",IF(MeltPt>DataTemp,EXP(6.79*(1-(MeltPt+273.15)/(DataTemp+273.15))),1)) -> 1
C11: Subcooled Liq. Vap. Press. | D11: =IF(Pv=0,"N/A",Pv/D9) -> 12700 | E11: Pa
C13: Partition Coefficients | D13: dimensionless | E13: L/kg
C14: Suspended Particles-Water | D14: =E14*DensWatP/1000 -> 53.088 | E14: =IF(KSus="",KOC*OCSus,KSus) -> 22.12 | F14: =IF(KSus=""," (estimated using Koc and OC content of suspended particles)","") -> 
C15: Suspended Particles-Water (Inflow) | D15: =E15*DensWatP/1000 -> 53.088 | E15: =IF(KSus_Inf="",KOC*OCSus_Inf,KSus_Inf) -> 22.12 | F15: =IF(KSus_Inf=""," (estimated using Koc and OC content of inflow particles)","") -> 
C16: Sediment-Water | D16: =E16*DensSedS/1000 -> 3.984 | E16: =IF(KSed="",KOC*OCSed,KSed) -> 1.66 | F16: =IF(KSed=""," (estimated using Koc and OC content of sediment solids)","") -> 
C17: Resuspended Sediment-Water | D17: =E17*DensSedS/1000 -> 3.312 | E17: =IF(KResus="",KOC*OCResus,KResus) -> 1.38 | F17: =IF(KResus=""," (estimated using Koc and OC content of resuspended sediment)","") -> 
D19: Volume Fraction | E19: Volume | F19: Z Value | G19: VZ
E20: m³ | F20: mol/m³·Pa | G20: mol/Pa
C21: Air: Bulk | D21: - | E21: - | F21: =F22*D22+F23*D23 -> 0.0004034179055 | G21: -
C22: Gas Phase | D22: =1-D23 -> 1 | E22: - | F22: =IF(H=0,KAW,1/(8.314*(DataTemp+273.15))) -> 0.0004034179017 | G22: -
C23: Aerosols | D23: =Air_S/DensAersl/10^9 -> 2e-11 | E23: - | F23: =IF(KQA=0,KQW*F25,KQA*F22) -> 0.1905746168 | G23: -
C24: Water: Bulk | D24: - | E24: =Vol_Wat -> 1670000000000 | F24: =D25*F25+D26*F26 -> 0.001794385164 | G24: =E24*F24 -> 2996623223
C25: Liquid Phase | D25: =1-D26 -> 0.9999997917 | E25: =D25*E24 -> 1.669999652e+12 | F25: =IF(H=0,1,1/H) -> 0.001794365692 | G25: =E25*F25 -> 2996590081
C26: Suspended Particles | D26: =Wat_S/DensWatP/1000 -> 2.083333333e-07 | E26: =D26*E24 -> 347916.6667 | F26: =D14*F25 -> 0.09525928584 | G26: =E26*F26 -> 33142.2932
C27: Inflow Water: Bulk | D27: - | E27: - | F27: =D28*F28+D29*F29 -> 0.001795300341 | G27: -
C28: Liquid Phase | D28: =1-D29 -> 0.99999 | E28: - | F28: =F25 -> 0.001794365692 | G28: -
C29: Suspended Particles | D29: =Inf_S/DensWatP/1000 -> 1e-05 | E29: - | F29: =D15*F28 -> 0.09525928584 | G29: -
C30: Sediment: Bulk | D30: - | E30: =Area*Depth_Sed -> 97500000 | F30: =D31*F31+D32*F32 -> 0.002597523775 | G30: =E30*F30 -> 253258.5681
C31: Pore Water | D31: =1-D32 -> 0.85 | E31: =D31*E30 -> 82875000 | F31: =F25 -> 0.001794365692 | G31: =E31*F31 -> 148708.0567
C32: Solids | D32: =Sed_S -> 0.15 | E32: =D32*E30 -> 14625000 | F32: =D16*F31 -> 0.007148752916 | G32: =E32*F32 -> 104550.5114
C33: Resuspended Sediment | D33: - | E33: - | F33: =D17*F31 -> 0.005942939171 | G33: -
C34: Rain | D34: - | E34: - | F34: =F25 -> 0.001794365692 | G34: -
C36: Advection, Reaction and | D36: Flow Rate (G) | E36: D Value | G36: Rate Constants | H36: h-1
C37: Intercompartmental Transfers | D37: m³/h | E37: mol/Pa·h | G37: Reaction in Water | H37: =LN(2)/HL_Wat -> 0.004077336356
C38: Water Inflow | D38: =Inflow*D28 -> 23999760 | E38: =D38*F28 -> 43064.34595 | G38: Reaction in Sediment | H38: =LN(2)/HL_Sed -> 0.0004077336356
C39: Suspended Particle Inflow | D39: =Inflow*D29 -> 240 | E39: =D39*F29 -> 22.8622286
C40: Water Outflow | D40: =Outflow*D25 -> 24399994.92 | E40: =D40*F25 -> 43782.51376 | G40: Total D values | H40: mol/Pa·h
C41: Suspended Particle Outflow | D41: =Outflow*D26 -> 5.083333333 | E41: =D41*F26 -> 0.484234703 | G41: From Air | H41: =E42+E43+E44+E45 -> 338369.071
C42: Rain Dissolution and Deposition | D42: =Rain*Area/365/24 -> 1869863.014 | E42: =D42*F25 -> 3355.21804 | G42: From Water | H42: =E40+E41+E45+E46+E47+E50 -> 12611076.91
C43: Dry Aerosol Deposition | D43: =AerslDep*Area*D23 -> 2.808 | E43: =D43*F23 -> 0.5351335239 | G43: Inflow | H43: =E38+E39 -> 43087.20818
C44: Wet Aerosol Deposition | D44: =D42*D23*ScavRatio -> 7.479452055 | E44: =D44*F23 -> 1.425393709 | G44: From Sediment | H44: =E47+E49+E48+E51 -> 14101.90883
C45: Volatilization | D45: =Area*KAW/(KAW/VolWatMTC+1/VolAMTC) -> 186702127.7 | E45: =D45*F25 -> 335011.8924
C46: Sedimentation | D46: =SedRate*Area/DensSedS/24/1000 -> 473.9583333 | E46: =D46*F26 -> 45.14893235 | G46: Intercompartmental D Values
C47: Water-Sediment Diffusion | D47: =Diffusion*Area -> 7800000 | E47: =D47*F31 -> 13996.0524 | H47: mol/Pa·h
C48: Sediment Resuspension | D48: =ReSusRate*Area/DensSedS/24/1000 -> 196.6927083 | E48: =D48*F33 -> 1.168932801 | G48: air to water | H48: =H41 -> 338369.071
C49: Sediment Burial | D49: =Burial*Area/DensSedS/24/1000 -> 199.4010417 | E49: =D49*F32 -> 1.425468778 | G49: water to air | H49: =E45 -> 335011.8924
C50: Reaction in Water | D50: - | E50: =H37*G24 -> 12218240.81 | G50: water to sediment | H50: =E46+E47 -> 14041.20133
C51: Reaction in Sediment | D51: - | E51: =H38*G30 -> 103.2620367 | G51: sediment to water | H51: =E47+E48 -> 13997.22133
D54: Fugacity | E54: Activity
D55: Pa | G55: Total Chemical Mass in Water-Sediment System
C56: Air: Bulk | D56: =D63/F21 -> 2.538798184e-07 | E56: =IF(Pv=0,"N/A",D56/D11) -> 1.999053688e-11 | H56: =G66+G72 -> 733.6084523 | I56: mol
C57: Water: Bulk | D57: =(Emis_molph+H41*D56+H43*D58)/(H42-H50*H51/H44) -> 2.447911096e-07 | E57: =IF(Pv=0,"N/A",D57/D11) -> 1.927489052e-11 | H57: =H66+H72 -> 57.30215621 | I57: kg
C58: Inflow Water: Bulk | D58: =D69/F27 -> 3.565547719e-05 | E58: =IF(Pv=0,"N/A",D58/D11) -> 2.807517889e-09
C59: Sediment: Bulk | D59: =D57*H50/H44 -> 2.437373049e-07 | E59: =IF(Pv=0,"N/A",D59/D11) -> 1.919191377e-11
D61: Concentrations | G61: Amounts
D62: mol/m³ | E62: g/m³ | F62: µg/g dry wgt | G62: mol | H62: kg | I62: %
C63: Air: Bulk | D63: =ConcAir -> 1.024196646e-10 | E63: =D63*MolarMass -> 8e-09 | F63: - | G63: - | H63: - | I63: -
C64: Gas Phase | D64: =D56*F22 -> 1.024196636e-10 | E64: 7.999999925e-09 | F64: - | G64: - | H64: - | I64: -
C65: Aerosols | D65: =D56*F23 -> 4.838304909e-08 | E65: 3.779199964e-06 | F65: =E65*1000/DensAersl -> 2.519466643e-06 | G65: - | H65: - | I65: -
C66: Water: Bulk | D66: =$D$57*F24 -> 4.392495352e-10 | E66: 3.430978119e-08 | F66: - | G66: =$D$57*G24 -> 733.5467237 | H66: =G66*MolarMass/1000 -> 57.29733459 | I66: =G66/$H$56*100 -> 99.99158563
C67: Liquid Phase | D67: =$D$57*F25 -> 4.392447686e-10 | E67: 3.430940888e-08 | F67: - | G67: =$D$57*G25 -> 733.5386108 | H67: =G67*MolarMass/1000 -> 57.29670089 | I67: =G67/$H$56*100 -> 99.99047973
C68: Suspended Particles | D68: =$D$57*F26 -> 2.331862628e-08 | E68: 1.821417898e-06 | F68: =E68*1000/DensWatP -> 7.589241244e-07 | G68: =$D$57*G26 -> 0.008112938725 | H68: =G68*MolarMass/1000 -> 0.0006337016438 | I68: =G68/$H$56*100 -> 0.001105894936
C69: Inflow Water: Bulk | D69: =ConcInf -> 6.401229036e-08 | E69: 5e-06 | F69: - | G69: - | H69: - | I69: -
C70: Liquid Phase | D70: =D58*F28 -> 6.3978965e-08 | E70: =D70*MolarMass -> 4.997396956e-06 | F70: - | G70: - | H70: - | I70: -
C71: Suspended Particles | D71: =D58*F29 -> 3.396515294e-06 | E71: 0.0002653018096 | F71: =E71*1000/DensWatP -> 0.0001105424207 | G71: - | H71: - | I71: -
C72: Sediment: Bulk | D72: =$D$59*F30 -> 6.331134443e-10 | E72: 4.945249113e-08 | F72: - | G72: =$D$59*G30 -> 0.06172856082 | H72: =G72*MolarMass/1000 -> 0.004821617886 | I72: =G72/$H$56*100 -> 0.008414374266
C73: Pore Water | D73: =$D$59*F31 -> 4.373538576e-10 | E73: 3.416170982e-08 | F73: - | G73: =$D$59*G31 -> 0.03624570095 | H73: =G73*MolarMass/1000 -> 0.002831151701 | I73: =G73/$H$56*100 -> 0.004940742005
C74: Solids | D74: =$D$59*F32 -> 1.742417769e-09 | E74: 1.361002519e-07 | F74: =E74*1000/DensSedS -> 5.67084383e-08 | G74: =$D$59*G32 -> 0.02548285987 | H74: =G74*MolarMass/1000 -> 0.001990466184 | I74: =G74/$H$56*100 -> 0.003473632261
C75: Rain | D75: =D56*F34 -> 4.555532359e-10 | E75: 3.558326326e-08 | F75: - | G75: - | H75: - | I75: -
C78: MASS BALANCES | G78: Rate Details | H78: kg/year | I78: mol/h
G79: Emission to Water | H79: =Emis_kgpy -> 1000 | I79: =Emis_molph -> 1.461467816
C80: System | D80: kg/year | E80: mol/h | G80: Water Inflow | H80: =I80*MolarMass*365*24/1000 -> 1050.642229 | I80: =E38*D58 -> 1.535479805
C81: Total Chemical Inputs | D81: =SUM(D82:D84) -> 2109.98 | E81: =SUM(E82:E84) -> 3.083667863 | G81: Particle Inflow | H81: 0.5577705245 | I81: =E39*D58 -> 0.0008151636705
C82: Emission | D82: =Emis_kgpy -> 1000 | E82: =Emis_molph -> 1.461467816 | G82: Water Outflow | H82: 7.333428763 | I82: =E40*D57 -> 0.01071757012
C83: Inflow | D83: =E83*MolarMass/1000*365*24 -> 1051.2 | E83: =H43*D58 -> 1.536294969 | G83: Particle Outflow | H83: 8.110773902e-05 | I83: =E41*D57 -> 1.185363502e-07
C84: Air to water transfer | D84: =E84*MolarMass/1000*365*24 -> 58.78000003 | E84: =H41*D56 -> 0.08590507829 | G84: Rain Dissolution | H84: 0.5828538521 | I84: =E42*D56 -> 0.0008518221466
G85: Dry Aerosol Deposition | H85: 9.296106306e-05 | I85: =E43*D56 -> 1.358596018e-07
C86: Total Chemical Losses | D86: =SUM(D87:D90) -> 2109.98 | E86: =SUM(E87:E90) -> 3.083667863 | G86: Wet Aerosol Deposition | H86: 0.0002476131817 | I86: =E44*D56 -> 3.618786959e-07
C87: Outflow | D87: =E87*MolarMass*24*365/1000 -> 7.333509871 | E87: =(E40+E41)*D57 -> 0.01071768866 | G87: Absorption | H87: 58.1968056 | I87: =E45*D56 -> 0.08505275841
C88: Water to air transfer | D88: =E88*MolarMass*24*365/1000 -> 56.11340321 | E88: =E45*D57 -> 0.08200793286 | G88: Volatilization | H88: 56.11340321 | I88: =E45*D57 -> 0.08200793286
C89: Total Transformation | D89: =E89*MolarMass*24*365/1000 -> 2046.532849 | E89: =E50*D57+E51*D59 -> 2.990941894 | G89: Sedimentation | H89: 0.007562299437 | I89: =E46*D57 -> 1.105205725e-05
C90: Sediment Burial | D90: =E90*MolarMass*24*365/1000 -> 0.0002377335404 | E90: =E49*D59 -> 3.474399181e-07 | G90: Water-Sediment Diffusion | H90: 2.34429329 | I90: =E47*D57 -> 0.003426109195
G91: Sediment-Water Diffusion | H91: 2.334201309 | I91: =E47*D59 -> 0.003411360089
C92: Residence Time | D92: h | E92: d | G92: Sediment Resuspension | H92: 0.0001949495755 | I92: =E48*D59 -> 2.849125305e-07
C93: Water | D93: =G66/(E87+I94+E88) -> 237.8832047 | E93: =D93/24 -> 9.911800196 | G93: Sediment Burial | H93: 0.0002377335404 | I93: =E49*D59 -> 3.474399181e-07
C94: Sediment | D94: =G72/(E90+I95) -> 2419.186195 | E94: =D94/24 -> 100.7994248 | G94: Water Transformation | H94: 2046.515628 | I94: =E50*D57 -> 2.990916726
C95: System | D95: =H56/E86 -> 237.9012542 | E95: =D95/24 -> 9.912552259 | G95: Sediment Transformation | H95: 0.01722159752 | I95: =E51*D59 -> 2.516881052e-05
C97: Water | D97: kg/year | E97: mol/h
C98: Total Chemical Inputs | D98: =SUM(D99:D102) -> 2112.314396 | E98: =SUM(E99:E102) -> 3.087079508
C99: Emission | D99: =Emis_kgpy -> 1000 | E99: =Emis_molph -> 1.461467816 | G99: Water Response Times
C100: Inflow | D100: =D83 -> 1051.2 | E100: =E83 -> 1.536294969 | H100: h | I100: d
C101: Air to water transfer | D101: =D84 -> 58.78000003 | E101: =E84 -> 0.08590507829 | G101: Water Inflow | H101: =IF(E38=0,"N/A",$G$24/E38) -> 69584.78428 | I101: =IF(H101 = "N/A",H101,H101/24) -> 2899.366012
C102: Sediment to water transfer | D102: =H91+H92 -> 2.334396258 | E102: =I91+I92 -> 0.003411645002 | G102: Particle Inflow | H102: 131073102.1 | I102: 5461379.253
G103: Water Outflow | H103: 68443.37993 | I103: 2851.807497
C104: Total Chemical Losses | D104: =SUM(D105:D108) -> 2112.314396 | E104: =SUM(E105:E108) -> 3.087079508 | G104: Particle Outflow | H104: 6188369409 | I104: 257848725.4
C105: Outflow | D105: =D87 -> 7.333509871 | E105: =E87 -> 0.01071768866 | G105: Rain Dissolution | H105: 893123.2449 | I105: 37213.46854
C106: Water to air transfer | D106: =D88 -> 56.11340321 | E106: =E88 -> 0.08200793286 | G106: Dry Aerosol Deposition | H106: 5599767328 | I106: 233323638.7
C107: Water to sediment transfer | D107: =H89+H90 -> 2.351855589 | E107: =I90+I89 -> 0.003437161252 | G107: Wet Aerosol Deposition | H107: =IF(E44=0,"N/A",$G$24/E44) -> 2102312648 | I107: 87596360.35
C108: Transformation in water | D108: =H94 -> 2046.515628 | E108: =I94 -> 2.990916726 | G108: Volatilization/Absorption | H108: =IF(E45=0,"N/A",$G$24/E45) -> 8944.82641 | I108: =IF(H108 = "N/A",H108,H108/24) -> 372.7011004
G109: Sedimentation | H109: =IF(E46=0,"N/A",$G$24/E46) -> 66371962.02 | I109: =IF(H109 = "N/A",H109,H109/24) -> 2765498.417
D110: h | E110: d | G110: Water-Sediment Diffusion | H110: =IF(E47=0,"N/A",$G$24/E47) -> 214104.8875 | I110: =IF(H110 = "N/A",H110,H110/24) -> 8921.036978
C111: Response Time | D111: =G66/E104 -> 237.618345 | E111: =D111/24 -> 9.900764376 | G111: Sediment Resuspension | H111: =IF(E48=0,"N/A",$G$24/E48) -> 2563554740 | I111: =IF(H111 = "N/A",H111,H111/24) -> 106814780.8
G112: Transformation | H112: =IF(E50=0,"N/A",G24/E50) -> 245.258157 | I112: =IF(H112 = "N/A",H112,H112/24) -> 10.21908987
C113: Sediment | D113: kg/year | E113: mol/h
C114: Total Chemical Inputs | D114: =D115 -> 2.351855589 | E114: =E115 -> 0.003437161252
C115: Water to sediment transfer | D115: =D107 -> 2.351855589 | E115: =E107 -> 0.003437161252 | G115: Sediment Response Times
H116: h | I116: d
C117: Total Chemical Losses | D117: =SUM(D118:D120) -> 2.351855589 | E117: =SUM(E118:E120) -> 0.003437161252 | G117: Sedimentation | H117: =IF(E46=0,"N/A",$G$30/E46) -> 5609.403255 | I117: =IF(H117="N/A",H117,H117/24) -> 233.7251356
C118: Sediment to water transfer | D118: =D102 -> 2.334396258 | E118: =E102 -> 0.003411645002 | G118: Water-Sediment Diffusion | H118: =IF(E47=0,"N/A",$G$30/E47) -> 18.095 | I118: =IF(H118="N/A",H118,H118/24) -> 0.7539583333
C119: Transformation in sediment | D119: =H95 -> 0.01722159752 | E119: =I95 -> 2.516881052e-05 | G119: Sediment Resuspension | H119: =IF(E48=0,"N/A",$G$30/E48) -> 216657.9361 | I119: =IF(H119="N/A",H119,H119/24) -> 9027.414004
C120: Sediment Burial | D120: =H93 -> 0.0002377335404 | E120: =I93 -> 3.474399181e-07 | G120: Sediment Burial | H120: =IF(E49=0,"N/A",$G$30/E49) -> 177666.8644 | I120: =IF(H120="N/A",H120,H120/24) -> 7402.786017
G121: Transformation | H121: =IF(E51=0,"N/A",G30/E51) -> 2452.58157 | I121: =IF(H121="N/A",H121,H121/24) -> 102.1908987
D122: h | E122: d
C123: Response Time | D123: =G72/E117 -> 17.95916929 | E123: =D123/24 -> 0.7482987205

Sheet Diagram
D2: Chemical Name: | F2: =ChemName -> Benzene (example)
D4: Lake Name: | F4: =EnvName -> Lake Ontario 1990s data
F7: Air
B8: =Results!H57 -> 57.30215621 | C8: kg
F9: Fugacity | G9: =Results!D56*10^6 -> 0.2538798184 | H9: µPa
F10: Concentration | G10: =Results!E63*10^9 -> 8 | H10: ng/m³
B11: =Results!D95 -> 237.9012542 | C11: h
B12: =Results!E95 -> 9.912552259 | C12: d | E12: =Results!D99 -> 1000
F14: =Results!D106 -> 56.11340321 | H14: =Results!D101 -> 58.78000003
B17: Inflow Water
F18: Water | I18: =Results!D87 -> 7.333509871
B19: Fugacity | C19: =Results!D58*10^6 -> 35.65547719 | D19: µPa | E19: =Results!D100 -> 1051.2
B20: Concentration | C20: =Results!E69*10^6 -> 5 | D20: ng/L | F20: Chemical Mass | G20: =Results!H66 -> 57.29733459 | H20: kg
F21: % of total chem. | G21: =Results!I66 -> 99.99158563 | I21: =Results!D108 -> 2046.515628
F22: Fugacity | G22: =Results!D57*10^6 -> 0.2447911096 | H22: µPa
F23: Concentration | G23: =Results!E66*10^6 -> 0.03430978119 | H23: ng/L
B27: LEGEND | F27: =Results!D118 -> 2.334396258 | H27: =Results!D115 -> 2.351855589
B29: Emissions (kg/y)
B31: Advection (kg/y) | F31: Sediment | I31: =Results!D90 -> 0.0002377335404
B33: Reaction (kg/y) | F33: Chemical Mass | G33: =Results!H72 -> 0.004821617886 | H33: kg
F34: % of total chem. | G34: =Results!I72 -> 0.008414374266 | I34: =Results!D119 -> 0.01722159752
B35: Exchange (kg/y) | F35: Fugacity | G35: =Results!D59*10^6 -> 0.2437373049 | H35: µPa
F36: Concentration | G36: =Results!E72*10^6 -> 0.04945249113 | H36: ng/L
G37: =Results!F74 -> 5.67084383e-08 | H37: µg/g dry wt
